bitfinex/quotes_SOLUSD_20250204
["timestamp","ask_amount","ask_price","bid_price","bid_amount"]
[1738627648141,36.47155991,216.7,216.58,0.063]
[1738627648142,36.47155991,216.65,216.58,0.063]
[1738627648346,36.47155991,216.74,216.59,6.0418]
[1738627648567,11.5324,216.78,216.59,6.0418]
[1738627648568,36.47155991,216.78,216.63,20.0]
[1738627649263,56.47155991,216.8,216.64,13.41184853]
[1738627649561,36.47155991,216.76,216.65,4.6157]
[1738627650543,36.47155991,216.74,216.65,4.6157]
[1738627651081,36.47155991,216.72,216.6,1.5331]
[1738627651239,36.47155991,216.78,216.61,17.1579]
[1738627651655,36.47155991,216.78,216.62,13.41184853]
[1738627651866,36.47155991,216.8,216.68,20.0]
[1738627652059,36.47155991,216.84,216.69,13.41184853]
[1738627652445,4.6123,216.81,216.69,18.02654853]
[1738627652654,36.47155991,216.76,216.61,4.6165]
[1738627653158,36.47155991,216.81,216.63,20.0]
[1738627653159,36.47155991,216.74,216.63,20.0]
[1738627653363,36.47155991,216.76,216.63,20.0]
[1738627653749,36.47155991,216.78,216.64,13.41184853]
[1738627654545,36.47155991,216.84,216.68,20.0]
[1738627654752,4.6106,216.89,216.69,14.41184853]
[1738627654753,36.47155991,216.86,216.69,14.41184853]
[1738627655150,36.47155991,216.88,216.73,13.41184853]
[1738627655350,36.47155991,216.88,216.73,33.41184853]
[1738627655549,36.47155991,216.92,216.75,13.41184853]
[1738627655741,36.47155991,216.92,216.78,20.0]
[1738627655946,36.47155991,216.94,216.79,13.41184853]
[1738627656172,36.47155991,216.92,216.79,13.41184853]
[1738627656552,36.47155991,216.94,216.81,13.41184853]
[1738627656758,36.47155991,216.96,216.81,13.41184853]
[1738627656967,36.50155991,217.0,216.84,20.0]
[1738627657273,36.47155991,216.98,216.84,20.0]
[1738627657659,0.03,217.0,216.88,13.41184853]
[1738627657868,0.03,217.0,216.9,33.41184853]
[1738627658083,0.03,217.0,216.91,1.6913017]
[1738627658282,0.03,217.0,216.9,33.41184853]
[1738627658445,36.50155991,217.0,216.91,4.6102]
[1738627658867,0.03,217.0,216.92,13.41184853]
[1738627659594,0.03,217.0,216.96,13.41184853]
[1738627659865,0.03,217.0,216.92,1.5508]
[1738627660255,0.03,217.0,216.92,14.96264853]
[1738627660974,0.03,217.0,216.93,4.6097]
[1738627661270,0.03,217.0,216.94,14.41184853]
[1738627661565,36.47155991,217.12,216.98,13.41184853]
[1738627661771,36.47155991,217.1,216.98,13.41184853]
[1738627662348,36.47155991,217.12,216.98,13.41184853]
[1738627662644,13.41184853,217.17,216.98,13.41184853]
[1738627662645,36.47155991,217.1,216.98,13.41184853]
[1738627662850,36.47155991,217.08,216.99,4.6085]
[1738627663078,36.47155991,217.14,216.99,4.6085]
[1738627663079,36.47155991,217.06,216.99,4.6085]
[1738627663450,36.47155991,217.1,216.99,4.6085]
[1738627663769,36.47155991,217.08,216.99,4.6085]
[1738627664653,36.47155991,217.08,216.97,18.02074853]
[1738627664964,36.47155991,217.0,216.93,4.6097]
[1738627665169,36.47155991,216.98,216.92,1.5508]
[1738627665474,36.47155991,216.96,216.88,4.6108]
[1738627665850,36.47155991,216.94,216.88,4.6108]
[1738627667069,36.47155991,216.98,216.88,16.1379]
[1738627667267,36.47155991,217.02,216.88,16.1379]
[1738627667574,36.47155991,217.02,216.89,13.41184853]
[1738627667769,36.47155991,217.02,216.88,16.1379]
[1738627667971,36.47155991,216.98,216.88,16.1379]
[1738627668278,36.47155991,217.0,216.88,16.1379]
[1738627668452,36.47155991,216.94,216.86,4.611]
[1738627668655,36.47155991,216.92,216.86,4.611]
[1738627668886,36.47155991,216.92,216.84,1.5114]
[1738627668887,36.47155991,216.9,216.8,6.5821]
[1738627669656,36.47155991,216.9,216.81,4.6123]
[1738627670266,36.47155991,216.9,216.81,16.1431]
[1738627670656,36.47155991,216.92,216.81,4.6123]
[1738627670879,0.03,216.94,216.81,4.6123]
[1738627670880,36.47155991,216.88,216.81,4.6123]
[1738627671358,36.47155991,216.9,216.81,4.6123]
[1738627672299,36.47155991,216.92,216.81,4.6123]
[1738627672467,36.50155991,216.94,216.81,16.1431]
[1738627672667,0.03,216.94,216.84,20.0]
[1738627673167,0.03,216.94,216.85,13.41184853]
[1738627673568,0.03,216.94,216.81,16.1431]
[1738627673569,36.50155991,216.94,216.81,16.1431]
[1738627674281,0.03,216.94,216.85,13.41184853]
[1738627674799,0.03,216.94,216.82,1.69169991]
[1738627674800,0.03,216.94,216.89,13.41184853]
[1738627675164,0.03,216.94,216.93,20.0]
[1738627675497,41.07785991,217.1,216.94,20.0]
[1738627675678,36.47155991,217.08,216.94,20.0]
[1738627676260,36.47155991,217.05,216.95,4.6093]
[1738627677287,36.47155991,217.07,216.95,4.6093]
[1738627677699,36.47155991,217.07,216.95,11.1103]
[1738627678171,3.94,217.11,216.95,4.6093]
[1738627678172,36.47155991,217.02,216.95,4.6093]
[1738627678369,36.47155991,216.97,216.9,1.513]
[1738627678588,36.47155991,216.95,216.9,1.513]
[1738627678780,36.47155991,216.97,216.9,6.1233]
[1738627679095,36.47155991,216.99,216.9,6.1233]
[1738627679871,36.47155991,217.01,216.9,17.6493]
[1738627680412,36.47155991,217.05,216.91,13.41184853]
[1738627680908,36.47155991,217.03,216.91,13.41184853]
[1738627681278,0.03,217.07,216.9,17.6493]
[1738627681279,36.47155991,217.01,216.9,17.6493]
[1738627681669,4.6075,217.04,216.9,17.6493]
[1738627681670,0.03,217.07,216.94,13.41184853]
[1738627681869,36.47155991,217.03,216.9,17.6493]
[1738627682071,36.47155991,216.99,216.9,17.6493]
[1738627682303,36.47155991,217.01,216.9,17.6493]
[1738627682506,36.47155991,217.03,216.9,17.6493]
[1738627682682,36.47155991,217.01,216.9,6.1233]
[1738627682889,36.47155991,216.97,216.9,6.1233]
[1738627683073,36.47155991,216.95,216.88,4.6736]
[1738627683579,36.47155991,216.91,216.88,0.063]
[1738627683792,36.47155991,216.93,216.88,0.063]
[1738627684000,36.47155991,216.91,216.88,0.063]
[1738627684870,36.47155991,216.89,216.88,0.063]
[1738627686514,49.88340844,216.89,216.88,0.0001]
[1738627686725,36.47155991,216.89,216.88,0.0001]
[1738627688081,50.88340844,216.89,216.88,0.0001]
[1738627688285,49.88340844,216.89,216.88,0.0001]
[1738627688487,36.47155991,216.89,216.88,0.0001]
[1738627689202,49.88340844,216.89,216.88,0.0001]
[1738627690116,63.29525744,216.89,216.88,0.0001]
[1738627691840,64.29525744,216.89,216.88,0.0001]
[1738627692125,71.54805744,216.89,216.88,0.0001]
[1738627692491,108.01961735,216.89,216.88,0.0001]
[1738627692890,69.54805744,216.89,216.88,0.0001]
[1738627693529,49.88340844,216.89,216.88,0.0001]
[1738627694216,53.78340844,216.89,216.88,0.0001]
[1738627694698,39.75184549,216.89,216.88,0.0001]
[1738627695592,22.43999696,216.89,216.88,0.0001]
[1738627695793,4.6104,216.9,216.88,0.0001]
[1738627695998,22.43999696,216.91,216.88,0.0001]
[1738627696813,22.348563,216.96,216.88,0.0001]
[1738627696814,22.43999696,216.95,216.88,0.0001]
[1738627697015,3.9,216.96,216.88,0.0001]
[1738627699521,36.41661444,216.95,216.88,0.0001]
[1738627700824,36.41661444,216.95,216.88,20.0001]
[1738627701014,36.41661444,217.02,216.89,13.41184853]
[1738627701206,36.41661444,217.04,216.93,13.41184853]
[1738627701516,36.41661444,217.04,216.89,13.41184853]
[1738627701517,36.41661444,217.04,216.92,20.0]
[1738627701818,36.41661444,217.04,216.93,13.41184853]
[1738627702022,36.41661444,217.06,216.93,13.41184853]
[1738627702328,36.41661444,217.06,216.95,13.41184853]
[1738627702739,0.03,217.07,216.95,13.41184853]
[1738627703099,0.03,217.07,216.99,13.41184853]
[1738627703302,0.03,217.07,217.02,20.0]
[1738627704216,0.03,217.07,216.99,16.1297]
[1738627704427,0.03,217.07,217.03,3.37962829]
[1738627705414,0.03,217.07,217.04,3.37796408]
[1738627706327,0.03,217.07,217.05,4.6072]
[1738627707144,0.03,217.07,217.06,20.0]
[1738627707809,0.03,217.07,217.05,4.6072]
[1738627707810,0.03,217.07,217.05,24.6072]
[1738627708420,0.03,217.07,217.05,25.6072]
[1738627708625,0.03,217.16,217.09,20.0]
[1738627709421,0.03,217.16,217.09,21.0]
[1738627710231,0.03,217.16,217.09,20.0]
[1738627710620,0.03,217.16,217.1,4.6061]
[1738627710815,0.03,217.16,217.1,16.1215]
[1738627711533,0.03,217.16,217.12,1.0]
[1738627711722,0.03,217.23,217.14,21.0]
[1738627711908,0.03,217.23,217.18,20.0]
[1738627712440,0.03,217.23,217.19,4.6042]
[1738627713212,0.03,217.23,217.21,7.8301]
[1738627713514,0.03,217.29,217.23,13.41184853]
[1738627713939,0.03,217.29,217.21,7.8301]
[1738627714309,0.03,217.29,217.23,13.41184853]
[1738627714943,0.03,217.29,217.24,4.6032]
[1738627716758,0.03,217.29,217.22,4.6036]
[1738627717963,0.03,217.29,217.22,16.1126]
[1738627718162,0.03,217.29,217.22,39.1307]
[1738627718471,0.03,217.29,217.26,20.0]
[1738627718681,0.03,217.29,217.22,16.1126]
[1738627719076,0.03,217.29,217.23,13.41184853]
[1738627719268,0.03,217.29,217.26,20.0]
[1738627720862,0.03,217.29,217.22,16.1126]
[1738627721186,22.32808998,217.26,217.15,6.6504]
[1738627721482,0.03,217.29,217.15,6.6504]
[1738627721483,22.32808998,217.24,217.15,6.6504]
[1738627721700,22.32808998,217.22,217.16,4.6048]
[1738627722258,22.32808998,217.22,217.11,4.6059]
[1738627722696,36.33226055,217.22,217.11,37.1208]
[1738627722982,36.33226055,217.24,217.11,36.1208]
[1738627723681,36.33226055,217.24,217.12,14.41184853]
[1738627723983,0.03,217.29,217.25,20.0]
[1738627725162,0.03,217.29,217.26,4.6027]
[1738627725561,0.03,217.29,217.22,6.1399]
[1738627725772,0.03,217.29,217.24,4.603]
[1738627727595,0.03,217.29,217.24,16.111]
[1738627727797,0.03,217.29,217.24,4.603]
[1738627728872,36.33226055,217.25,217.15,4.6051]
[1738627729069,36.33226055,217.21,217.11,4.6059]
[1738627729277,36.33226055,217.19,217.11,4.6059]
[1738627729571,36.33226055,217.17,217.1,0.063]
[1738627730080,36.33226055,217.19,217.1,0.063]
[1738627730279,36.33226055,217.15,217.1,0.063]
[1738627731085,6.5804,217.28,217.1,0.063]
[1738627731086,36.33226055,217.34,217.18,21.0]
[1738627731275,40.93296055,217.36,217.22,20.0]
[1738627731476,36.33226055,217.36,217.22,20.0]
[1738627731683,36.33226055,217.36,217.23,4.6034]
[1738627732083,36.33226055,217.36,217.23,16.1119]
[1738627732394,36.33226055,217.36,217.23,4.6034]
[1738627732570,6.4792,217.38,217.23,4.6034]
[1738627732571,36.33226055,217.34,217.23,4.6034]
[1738627732771,36.33226055,217.36,217.23,4.6034]
[1738627733193,36.33226055,217.36,217.23,16.1119]
[1738627733368,42.81146055,217.38,217.23,16.1119]
[1738627733810,42.81146055,217.38,217.24,14.41184853]
[1738627733985,36.33226055,217.42,217.3,20.0]
[1738627734190,36.33226055,217.44,217.3,20.0]
[1738627734511,36.33226055,217.4,217.22,1.0]
[1738627734711,36.33226055,217.34,217.23,4.6034]
[1738627735482,36.33226055,217.36,217.23,4.6034]
[1738627735688,36.33226055,217.36,217.2,13.41184853]
[1738627736491,36.33226055,217.36,217.19,16.1148]
[1738627736492,36.33226055,217.31,217.19,16.1148]
[1738627736690,36.33226055,217.33,217.19,16.1148]
[1738627736890,36.33226055,217.35,217.2,13.41184853]
[1738627737197,36.33226055,217.37,217.2,14.41184853]
[1738627737705,36.33226055,217.37,217.21,16.1133]
[1738627737889,36.33226055,217.37,217.22,13.41184853]
[1738627738089,36.33226055,217.39,217.22,13.41184853]
[1738627738320,36.33226055,217.39,217.25,20.0]
[1738627738614,0.03,217.37,217.25,20.0]
[1738627738784,0.03,217.37,217.26,13.41184853]
[1738627739412,0.03,217.37,217.28,13.41184853]
[1738627739792,0.03,217.37,217.29,16.1074]
[1738627740521,0.03,217.37,217.29,4.6021]
[1738627741522,0.03,217.37,217.25,13.41184853]
[1738627741812,0.03,217.37,217.27,33.41184853]
[1738627742618,0.03,217.37,217.27,34.41184853]
[1738627742911,0.03,217.37,217.3,13.41184853]
[1738627743117,0.03,217.37,217.31,20.0]
[1738627743315,0.03,217.37,217.33,16.1044]
[1738627743920,36.36226055,217.48,217.33,16.1044]
[1738627743921,0.03,217.48,217.37,20.0]
[1738627744516,0.03,217.48,217.38,13.41184853]
[1738627744703,0.03,217.48,217.36,20.0]
[1738627744906,0.03,217.48,217.33,16.1044]
[1738627745123,0.03,217.48,217.34,13.41184853]
[1738627745323,0.03,217.48,217.38,16.1007]
[1738627745624,0.03,217.48,217.39,13.41184853]
[1738627746712,0.03,217.48,217.38,17.1007]
[1738627747205,0.03,217.48,217.38,4.6002]
[1738627747436,0.03,217.48,217.37,20.0]
[1738627748009,36.36226055,217.48,217.32,4.6015]
[1738627748207,36.33226055,217.46,217.32,4.6015]
[1738627748520,36.36226055,217.48,217.32,16.1052]
[1738627748835,0.03,217.48,217.35,20.0]
[1738627749041,0.03,217.48,217.4,20.0]
[1738627749610,0.03,217.48,217.41,24.5996]
[1738627750011,0.03,217.48,217.41,4.5996]
[1738627750216,0.03,217.48,217.41,16.0986]
[1738627751627,0.03,217.48,217.41,36.0986]
[1738627751825,0.03,217.48,217.41,37.0986]
[1738627752318,0.03,217.48,217.41,36.0986]
[1738627752559,0.03,217.48,217.41,4.5996]
[1738627753669,0.03,217.48,217.4,11.4995]
[1738627753850,0.03,217.48,217.39,4.6]
[1738627754166,0.03,217.48,217.39,16.1]
[1738627754747,0.03,217.48,217.39,36.1]
[1738627754948,0.03,217.48,217.42,20.0]
[1738627755175,0.03,217.48,217.43,4.5991]
[1738627755377,0.03,217.51,217.47,20.0]
[1738627755683,0.03,217.58,217.53,20.0]
[1738627755971,0.03,217.58,217.55,13.41184853]
[1738627756194,0.03,217.64,217.6,1.0]
[1738627756478,0.03,217.7,217.58,22.29495736]
[1738627756852,0.03,217.7,217.62,20.0]
[1738627757264,0.03,217.7,217.63,24.5949]
[1738627758655,0.03,217.7,217.58,4.596]
[1738627760056,20.0,217.69,217.52,11.493]
[1738627760265,36.33226055,217.62,217.48,4.5981]
[1738627760458,36.33226055,217.64,217.48,4.5981]
[1738627760761,36.33226055,217.62,217.48,16.0932]
[1738627761176,36.33226055,217.62,217.51,20.0]
[1738627761360,36.33226055,217.62,217.48,16.0932]
[1738627761565,36.33226055,217.6,217.48,4.5981]
[1738627761751,36.33226055,217.56,217.41,4.5996]
[1738627761956,36.33226055,217.52,217.39,11.5]
[1738627762472,36.33226055,217.54,217.42,20.0]
[1738627763055,4.5963,217.57,217.4,13.41184853]
[1738627763256,3.94,217.59,217.44,13.41184853]
[1738627763455,3.94,217.59,217.47,20.0]
[1738627764070,3.94,217.59,217.48,4.5981]
[1738627764258,36.33226055,217.54,217.4,4.5998]
[1738627764563,36.33226055,217.52,217.4,16.0992]
[1738627765089,36.33226055,217.46,217.33,4.6012]
[1738627765759,36.33226055,217.46,217.35,20.0]
[1738627765960,36.33226055,217.46,217.33,4.6012]
[1738627766865,36.33226055,217.48,217.33,16.1044]
[1738627767064,36.33226055,217.46,217.33,4.6012]
[1738627767868,36.33226055,217.48,217.33,4.6012]
[1738627768077,54.34240908,217.48,217.33,4.6012]
[1738627768578,36.33226055,217.44,217.33,4.6012]
[1738627768882,36.33226055,217.42,217.31,4.6015]
[1738627769377,36.33226055,217.4,217.29,4.6649]
[1738627769566,36.33226055,217.42,217.3,20.0]
[1738627770168,40.93176055,217.42,217.29,4.6649]
[1738627770366,13.41184853,217.39,217.29,0.063]
[1738627770593,36.33226055,217.38,217.29,0.063]
[1738627771060,13.41184853,217.39,217.29,0.063]
[1738627771672,18.01194853,217.39,217.29,0.063]
[1738627772578,4.5991,217.43,217.29,0.063]
[1738627773463,4.5991,217.43,217.29,4.6651]
[1738627773661,36.33226055,217.4,217.29,4.6651]
[1738627773868,36.33226055,217.42,217.29,4.6651]
[1738627774192,6.4666,217.49,217.32,20.0]
[1738627774396,36.33226055,217.48,217.32,20.0]
[1738627774699,11.0646,217.49,217.32,20.0]
[1738627775003,6.4666,217.49,217.33,6.0225]
[1738627775410,13.41184853,217.48,217.33,6.0225]
[1738627775695,11.0645,217.49,217.34,4.601]
[1738627775696,6.4666,217.49,217.34,4.601]
[1738627776083,6.4666,217.49,217.34,16.1037]
[1738627776594,11.0645,217.49,217.34,16.1037]
[1738627776801,36.33226055,217.46,217.34,4.601]
[1738627776974,36.33226055,217.42,217.32,4.6014]
[1738627777182,36.33226055,217.38,217.29,0.063]
[1738627777377,36.33226055,217.38,217.29,4.665]
[1738627777579,36.33226055,217.38,217.29,0.063]
[1738627777822,40.93256055,217.38,217.29,0.063]
[1738627778175,36.33226055,217.36,217.29,0.063]
[1738627778403,13.41184853,217.35,217.29,0.063]
[1738627778813,13.41184853,217.33,217.29,0.063]
[1738627778991,49.74410908,217.3,217.29,0.063]
[1738627779383,36.33226055,217.3,217.29,0.063]
[1738627779686,40.93416055,217.3,217.29,0.063]
[1738627780110,36.33226055,217.3,217.29,0.063]
[1738627780284,36.33226055,217.32,217.29,0.063]
[1738627781217,44.81216055,217.4,217.29,0.063]
[1738627781575,40.21226055,217.4,217.29,0.063]
[1738627781778,6.5052,217.42,217.29,0.063]
[1738627781975,36.33226055,217.43,217.29,0.063]
[1738627782202,4.5991,217.44,217.3,20.0]
[1738627782392,4.5986,217.46,217.3,20.0]
[1738627783001,36.33226055,217.45,217.3,20.0]
[1738627783399,36.33226055,217.45,217.31,4.6017]
[1738627783902,40.93106055,217.45,217.31,4.6017]
[1738627784702,36.33226055,217.47,217.31,36.106]
[1738627784899,6.1398,217.48,217.31,36.106]
[1738627785097,36.33226055,217.49,217.32,13.41184853]
[1738627785288,40.92976055,217.51,217.35,20.0]
[1738627785488,36.33226055,217.51,217.35,20.0]
[1738627785686,40.92946055,217.53,217.35,20.0]
[1738627785885,36.33226055,217.51,217.35,20.0]
[1738627786383,13.41184853,217.47,217.31,16.106]
[1738627786697,36.33226055,217.4,217.27,11.5062]
[1738627786903,36.33226055,217.4,217.27,16.1087]
[1738627788004,36.33226055,217.4,217.3,20.0]
[1738627788198,36.33226055,217.4,217.31,4.6017]
[1738627788511,40.93206055,217.4,217.31,4.6017]
[1738627789914,36.33226055,217.4,217.31,4.6017]
[1738627790596,36.33226055,217.36,217.26,6.4841]
[1738627790807,36.33226055,217.34,217.26,6.4841]
[1738627790990,36.33226055,217.34,217.26,11.0867]
[1738627791196,36.33226055,217.34,217.25,0.063]
[1738627791524,36.33226055,217.34,217.25,4.6659]
[1738627791694,36.33226055,217.38,217.25,0.063]
[1738627792089,36.33226055,217.42,217.26,20.0]
[1738627792503,40.93176055,217.42,217.26,20.0]
[1738627792823,36.33226055,217.4,217.26,20.0]
[1738627793319,36.33226055,217.38,217.25,0.063]
[1738627793526,36.33226055,217.36,217.25,0.063]
[1738627793728,36.33226055,217.38,217.25,0.063]
[1738627794200,40.93256055,217.38,217.25,0.063]
[1738627794593,36.33226055,217.44,217.26,20.0]
[1738627794806,4.5995,217.42,217.26,20.0]
[1738627795113,4.5995,217.42,217.25,0.063]
[1738627795114,36.33226055,217.35,217.25,0.063]
[1738627795703,36.33226055,217.33,217.25,0.063]
[1738627795993,36.33226055,217.31,217.25,0.063]
[1738627796318,4.6019,217.3,217.25,0.063]
[1738627797210,18.01374853,217.3,217.25,0.063]
[1738627797414,20.0,217.27,217.25,0.063]
[1738627797597,49.74410908,217.26,217.25,0.063]
[1738627798299,49.74410908,217.26,217.23,0.063]
[1738627798501,69.74410908,217.24,217.23,0.063]
[1738627799219,69.74410908,217.21,217.2,0.063]
[1738627799420,74.34790908,217.21,217.2,0.063]
[1738627799720,84.33370908,217.21,217.2,0.0001]
[1738627799905,20.0,217.17,217.1,0.063]
[1738627800101,13.41184853,217.11,217.1,0.063]
[1738627800422,13.41184853,217.11,217.09,0.063]
[1738627800423,14.41184853,217.1,217.09,0.0001]
[1738627800598,50.74410908,217.1,217.09,0.0001]
[1738627800802,49.74410908,217.1,217.09,0.0001]
[1738627801000,49.74410908,217.1,217.01,0.063]
[1738627801001,21.0,217.06,217.01,0.063]
[1738627801222,36.33226055,217.02,217.01,0.063]
[1738627801430,40.94006055,217.02,217.01,0.063]
[1738627801722,36.33226055,217.06,217.01,0.063]
[1738627801913,40.93926055,217.06,217.01,0.063]
[1738627802226,36.33226055,217.04,217.01,0.063]
[1738627802618,36.33226055,217.02,217.01,0.063]
[1738627802820,51.74410908,217.02,217.01,0.0001]
[1738627803022,2.0,216.97,216.88,0.0001]
[1738627803212,36.33226055,216.9,216.88,0.0001]
[1738627803523,40.94276055,216.9,216.88,0.0001]
[1738627804433,36.33226055,216.9,216.88,0.0001]
[1738627804624,24.93484853,216.96,216.88,0.0001]
[1738627804625,4.6092,216.96,216.88,0.0001]
[1738627804804,40.93986055,217.03,216.88,0.0001]
[1738627805211,20.0,217.0,216.88,0.0001]
[1738627805411,24.6084,217.0,216.88,0.0001]
[1738627805705,36.33226055,216.93,216.88,0.0001]
[1738627805918,36.33226055,216.89,216.88,0.0001]
[1738627806121,37.33226055,216.89,216.88,0.0001]
[1738627806308,36.33226055,216.89,216.88,0.0001]
[1738627807311,49.74410908,216.89,216.88,0.0001]
[1738627807509,40.94286055,216.89,216.88,0.0001]
[1738627809535,54.35470908,216.89,216.88,0.0001]
[1738627809836,40.94286055,216.89,216.88,0.0001]
[1738627810818,56.35470908,216.89,216.88,0.0001]
[1738627811019,13.41184853,216.85,216.79,0.063]
[1738627811232,36.33226055,216.82,216.79,0.063]
[1738627812855,4.6123,216.81,216.79,0.063]
[1738627813710,36.33226055,216.82,216.79,0.063]
[1738627813711,4.6119,216.83,216.79,0.063]
[1738627814130,36.33226055,216.86,216.79,0.063]
[1738627814319,36.33226055,216.9,216.79,0.063]
[1738627815039,36.33226055,216.88,216.79,0.063]
[1738627815427,20.0,216.87,216.79,0.063]
[1738627815629,4.6099,216.93,216.79,20.063]
[1738627815814,40.94046055,217.0,216.81,13.41184853]
[1738627816008,40.94046055,217.0,216.83,13.41184853]
[1738627816415,4.6082,217.0,216.83,13.41184853]
[1738627817043,0.03,217.02,216.88,13.41184853]
[1738627817214,0.03,217.02,216.96,6.3346]
[1738627817548,0.03,217.02,216.97,13.41184853]
[1738627817707,0.03,217.02,217.0,20.0]
[1738627817912,40.93656055,217.19,217.01,13.41184853]
[1738627818135,36.33226055,217.11,217.0,1.5277]
[1738627818313,20.0,217.16,217.0,1.5277]
[1738627818314,36.33226055,217.15,217.0,1.5277]
[1738627818734,36.33226055,217.13,217.0,1.5277]
[1738627818935,36.33226055,217.11,217.0,1.5277]
[1738627819149,36.33226055,217.09,217.0,1.5277]
[1738627819315,0.03,217.02,216.96,6.3346]
[1738627819836,0.03,217.02,216.96,10.9436]
[1738627821016,0.03,217.02,216.97,13.41184853]
[1738627823019,0.03,217.02,216.98,4.6087]
[1738627823890,40.13226055,217.17,217.01,13.41184853]
[1738627824137,36.33226055,217.19,217.05,13.41184853]
[1738627824315,15.4041,217.2,217.05,13.41184853]
[1738627824517,7.0,217.2,217.08,20.0]
[1738627825142,7.0,217.2,217.09,18.01814853]
[1738627825937,11.6041,217.2,217.09,4.6063]
[1738627826126,36.33226055,217.17,217.09,4.6063]
[1738627826319,36.33226055,217.19,217.09,4.6063]
[1738627826729,36.33226055,217.13,216.97,4.6089]
[1738627827041,36.33226055,217.11,217.0,29.54074853]
[1738627827237,36.33226055,217.15,217.0,29.54074853]
[1738627827432,36.33226055,217.1,217.0,29.54074853]
[1738627828161,36.33226055,217.12,217.0,29.54074853]
[1738627829221,3.8,217.18,217.08,13.41184853]
[1738627829742,36.33226055,217.16,217.07,21.6343]
[1738627829914,36.33226055,217.14,217.07,1.6343]
[1738627830435,0.03,217.1,217.07,1.6343]
[1738627830653,0.03,217.1,217.06,4.6068]
[1738627831323,0.03,217.1,217.07,13.41184853]
[1738627831513,0.03,217.1,217.06,16.1243]
[1738627831721,0.03,217.1,217.06,4.6068]
[1738627831920,0.03,217.1,217.06,24.6068]
[1738627832342,0.03,217.1,217.07,13.41184853]
[1738627832533,0.03,217.1,217.08,4.6065]
[1738627833247,0.03,217.1,217.09,33.41184853]
[1738627833542,7.0,217.2,217.1,19.96744853]
[1738627833751,7.0,217.2,217.1,6.5556]
[1738627833935,43.33226055,217.2,217.1,6.5556]
[1738627834729,43.33226055,217.2,217.11,4.6059]
[1738627834924,36.33226055,217.12,217.04,6.5556]
[1738627835169,36.33226055,217.1,217.05,4.6072]
[1738627835331,36.33226055,217.1,217.04,6.5556]
[1738627835743,36.33226055,217.08,217.01,13.41184853]
[1738627835942,36.33226055,217.08,217.02,4.6076]
[1738627836155,36.33226055,217.04,216.98,11.1641]
[1738627836469,36.33226055,217.04,216.98,6.5556]
[1738627836749,36.33226055,217.02,216.94,4.6094]
[1738627836944,16.1215,217.1,216.94,4.6094]
[1738627836945,36.33226055,217.04,216.94,4.6094]
[1738627837150,36.33226055,217.04,216.95,13.41184853]
[1738627837368,3.8,217.12,216.95,13.41184853]
[1738627837369,36.33226055,217.08,216.98,20.0]
[1738627837729,36.33226055,217.02,216.94,4.6094]
[1738627838249,36.33226055,217.0,216.93,6.2343]
[1738627838438,36.33226055,217.0,216.93,1.6247]
[1738627838627,36.33226055,217.0,216.92,10.9712]
[1738627838827,36.33226055,217.02,216.92,10.9712]
[1738627839249,36.33226055,217.0,216.92,10.9712]
[1738627839436,36.33226055,217.0,216.86,13.1526]
[1738627839437,36.33226055,216.98,216.9,4.6102]
[1738627839638,36.33226055,216.98,216.86,1.6247]
[1738627839846,36.33226055,216.98,216.89,20.0]
[1738627840146,36.33226055,216.98,216.88,4.6107]
[1738627840147,36.33226055,217.0,216.9,20.0]
[1738627840359,36.33226055,216.98,216.9,20.0]
[1738627840541,36.33226055,216.98,216.89,20.0]
[1738627840740,40.94096055,216.98,216.89,20.0]
[1738627841332,36.33226055,217.0,216.89,20.0]